bitfinex/quotes_BTCUSD_20240727
["timestamp","ask_amount","ask_price","bid_price","bid_amount"]
[1722093754815,0.0789,69057.0,69056.0,0.43343]
[1722093755162,0.0789,69057.0,69056.0,0.15527965]
[1722093755693,0.061,69059.0,69056.0,0.15527965]
[1722093755894,0.00098342,69058.0,69056.0,0.15527965]
[1722093756101,0.061,69059.0,69058.0,0.144805]
[1722093756340,0.061,69059.0,69056.0,0.01146965]
[1722093756516,0.07512979,69060.0,69056.0,0.01146965]
[1722093756517,0.07512979,69060.0,69059.0,0.144803]
[1722093756729,0.07512979,69060.0,69059.0,0.47899876]
[1722093756931,0.07512979,69060.0,69059.0,0.20080484]
[1722093757134,0.07512979,69060.0,69059.0,0.01141308]
[1722093757336,0.144795,69063.0,69059.0,0.01141308]
[1722093757573,0.205793,69064.0,69059.0,0.144803]
[1722093757744,0.144795,69063.0,69060.0,0.01141103]
[1722093758122,0.144799,69061.0,69060.0,0.01141103]
[1722093758318,0.434398,69061.0,69060.0,0.01141103]
[1722093758516,0.434398,69061.0,69053.0,0.144814]
[1722093758517,0.144808,69057.0,69053.0,0.144814]
[1722093758945,0.144808,69057.0,69051.0,0.289636]
[1722093758946,0.061,69070.0,69056.0,0.0609]
[1722093759120,0.07512979,69074.0,69067.0,0.289573]
[1722093759493,0.07512979,69074.0,69071.0,0.144777]
[1722093759703,0.07512979,69074.0,69070.0,0.144779]
[1722093759830,0.07512979,69074.0,69072.0,0.15608331]
[1722093760042,0.07512979,69074.0,69072.0,0.01130731]
[1722093760476,0.02272147,69078.0,69077.0,0.144765]
[1722093760674,0.02272147,69078.0,69077.0,0.15606205]
[1722093760994,0.0789,69080.0,69078.0,0.144763]
[1722093761525,0.0789,69080.0,69078.0,0.0117417]
[1722093761742,0.42564079,69082.0,69078.0,0.20106511]
[1722093761743,0.07512979,69082.0,69078.0,0.20106511]
[1722093761940,0.07512979,69082.0,69078.0,0.47885041]
[1722093762139,0.07512979,69082.0,69078.0,0.49059211]
[1722093762282,0.07512979,69082.0,69078.0,0.4460317]
[1722093762484,0.00061029,69083.0,69078.0,0.4460317]
[1722093762745,0.00061029,69083.0,69078.0,0.7365587]
[1722093763980,0.00061029,69083.0,69078.0,0.4470317]
[1722093764196,0.144758,69081.0,69078.0,0.0127417]
[1722093764401,0.29012029,69083.0,69078.0,0.0127417]
[1722093764608,0.444454,69079.0,69078.0,0.001]
[1722093765215,0.733977,69079.0,69078.0,0.001]
[1722093765879,0.444454,69079.0,69078.0,0.001]
[1722093766053,0.154931,69079.0,69078.0,0.001]
[1722093766267,0.01017,69079.0,69078.0,0.0155771]
[1722093766466,0.01017,69079.0,69078.0,0.43529]
[1722093766635,0.01017,69079.0,69078.0,0.56735364]
[1722093766840,0.01017,69079.0,69078.0,0.85688064]
[1722093767447,0.01017,69079.0,69078.0,0.4470317]
[1722093767689,0.154931,69079.0,69078.0,0.0127417]
[1722093767896,0.154931,69079.0,69078.0,0.001]
[1722093768213,0.154931,69079.0,69078.0,0.0127417]
[1722093768214,0.444454,69079.0,69078.0,0.0127417]
[1722093768607,0.144776,69072.0,69063.0,0.45077872]
[1722093768816,0.144776,69072.0,69059.0,0.45077872]
[1722093768817,0.07512979,69064.0,69059.0,0.45077872]
[1722093769021,0.07512979,69064.0,69060.0,0.12034681]
[1722093769022,0.144799,69061.0,69060.0,0.12034681]
[1722093769222,0.144797,69062.0,69057.0,0.144807]
[1722093769425,0.07512979,69064.0,69060.0,0.05935421]
[1722093769426,0.144799,69061.0,69060.0,0.05935421]
[1722093769598,0.07512979,69064.0,69055.0,0.47319526]
[1722093769754,0.07512979,69064.0,69056.0,0.12035748]
[1722093769956,0.07512979,69064.0,69055.0,0.47319526]
[1722093769957,0.289594,69062.0,69055.0,0.47319526]
[1722093770160,0.0015542,69061.0,69058.0,0.144805]
[1722093770344,0.0015542,69061.0,69059.0,0.144802]
[1722093770548,0.0015542,69061.0,69058.0,0.10279838]
[1722093770751,0.1463492,69063.0,69059.0,0.12035731]
[1722093770991,0.0015542,69063.0,69060.0,0.12035731]
[1722093771194,0.144796,69063.0,69061.0,0.12035731]
[1722093771371,0.0015542,69064.0,69058.0,0.10279838]
[1722093771372,0.0015542,69064.0,69062.0,0.14600078]
[1722093771581,0.0015542,69064.0,69063.0,0.26515231]
[1722093771785,0.144789,69066.0,69063.0,0.13204627]
[1722093771994,0.28957,69068.0,69063.0,0.13204627]
[1722093771995,0.0015542,69065.0,69063.0,0.01168896]
[1722093772201,0.144793,69064.0,69063.0,0.01168896]
[1722093772368,0.144795,69063.0,69055.0,0.48119526]
[1722093772571,0.144792,69065.0,69057.0,0.289614]
[1722093772904,0.1463472,69064.0,69059.0,0.144801]
[1722093773073,0.0015542,69064.0,69061.0,0.144798]
[1722093773272,0.14479,69066.0,69062.0,0.27687958]
[1722093773273,0.1463442,69066.0,69062.0,0.27687958]
[1722093773471,0.0015542,69066.0,69062.0,0.02072888]
[1722093773696,0.0015542,69066.0,69062.0,0.01172888]
[1722093773916,0.0015542,69066.0,69062.0,0.144797]
[1722093773917,0.1463442,69066.0,69062.0,0.144797]
[1722093774101,0.144791,69065.0,69063.0,0.01172479]
[1722093774327,0.144791,69065.0,69063.0,0.05397411]
[1722093774567,0.144791,69065.0,69064.0,0.01172274]
[1722093775129,0.00122776,69069.0,69064.0,0.01172274]
[1722093775363,0.1407,69072.0,69065.0,0.12034801]
[1722093775581,0.489435,69101.0,69066.0,0.168412]
[1722093775582,0.289529,69078.0,69066.0,0.168412]
[1722093775783,0.0642,69078.0,69067.0,0.12034801]
[1722093775989,0.14478,69071.0,69068.0,0.12034801]
[1722093776147,0.28955,69073.0,69069.0,0.12034314]
[1722093776148,0.144777,69072.0,69069.0,0.12034314]
[1722093776348,0.144778,69071.0,69068.0,0.05318991]
[1722093776555,0.144778,69071.0,69070.0,0.01170162]
[1722093776751,0.144778,69071.0,69070.0,0.12034314]
[1722093777052,0.0015542,69071.0,69070.0,0.85594676]
[1722093777464,0.0015542,69078.0,69076.0,0.144767]
[1722093777766,0.0015542,69078.0,69074.0,0.289541]
[1722093777767,0.149932,69079.0,69077.0,0.13201267]
[1722093777948,0.00517,69079.0,69078.0,0.144763]
[1722093778090,0.00517,69079.0,69078.0,0.12032831]
[1722093778296,0.149931,69079.0,69078.0,0.12032831]
[1722093778524,0.439454,69079.0,69078.0,0.13200776]
[1722093778941,1.1592,69079.0,69078.0,0.13200776]
[1722093779185,1.1592,69079.0,69066.0,0.001]
[1722093779186,0.144783,69069.0,69066.0,0.001]
[1722093779339,0.289545,69074.0,69067.0,0.12033799]
[1722093779557,0.14587,69079.0,69072.0,0.144776]
[1722093779558,0.144768,69076.0,69072.0,0.144776]
[1722093779779,0.289527,69078.0,69073.0,0.12033799]
[1722093779980,0.14477,69075.0,69074.0,0.12033799]
[1722093780184,0.43431,69075.0,69074.0,0.12033799]
[1722093780393,0.72385,69075.0,69074.0,0.13201178]
[1722093780927,0.72385,69075.0,69074.0,0.12033799]
[1722093781086,0.14587,69079.0,69065.0,0.14479]
[1722093781087,0.289557,69071.0,69065.0,0.14479]
[1722093781249,0.144783,69069.0,69066.0,0.13202858]
[1722093781491,0.144783,69069.0,69067.0,0.12033672]
[1722093781689,0.144783,69069.0,69068.0,0.13202448]
[1722093781943,0.144781,69070.0,69068.0,0.13202734]
[1722093782173,0.144779,69071.0,69069.0,0.12033958]
[1722093782372,0.0015542,69070.0,69069.0,0.02367409]
[1722093782579,0.0015542,69070.0,69069.0,0.1440085]
[1722093782863,0.144777,69072.0,69069.0,0.1440085]
[1722093783075,0.144777,69072.0,69070.0,0.18968601]
[1722093783277,0.144777,69072.0,69071.0,0.12033441]
[1722093783571,0.289546,69074.0,69071.0,0.12033441]
[1722093783572,0.1463282,69073.0,69071.0,0.12033441]
[1722093783778,0.289537,69076.0,69072.0,0.12033441]
[1722093783932,0.289537,69076.0,69073.0,0.12033284]
[1722093784131,0.14477,69075.0,69074.0,0.14659448]
[1722093784518,0.289531,69077.0,69074.0,0.14659448]
[1722093784721,0.00517,69079.0,69076.0,0.144767]
[1722093784923,0.00517,69079.0,69077.0,0.12033284]
[1722093785122,0.00517,69079.0,69078.0,0.12032727]
[1722093785348,0.00622245,69079.0,69078.0,0.14455409]
[1722093785556,0.439454,69079.0,69078.0,0.12032727]
[1722093785929,0.728977,69079.0,69078.0,0.12032727]
[1722093786132,0.289535,69077.0,69071.0,0.003]
[1722093786356,0.289535,69077.0,69070.0,0.2810516]
[1722093786357,0.144768,69076.0,69072.0,0.2651084]
[1722093786555,0.00517,69079.0,69074.0,0.005]
[1722093786758,0.0015542,69078.0,69075.0,0.2651024]
[1722093786963,0.00517,69079.0,69076.0,0.1203334]
[1722093787160,0.144768,69076.0,69075.0,0.01166182]
[1722093787378,0.144768,69076.0,69075.0,0.12033084]
[1722093787602,0.434304,69076.0,69075.0,0.12033084]
[1722093787830,0.144775,69073.0,69069.0,0.144782]
[1722093787957,0.144778,69071.0,69070.0,0.12033345]
[1722093788445,0.144778,69071.0,69070.0,0.12033399]
[1722093788655,0.144778,69071.0,69064.0,0.47319526]
[1722093788656,0.144782,69069.0,69064.0,0.47319526]
[1722093788785,0.289557,69071.0,69065.0,0.24061532]
[1722093789013,0.08029979,69079.0,69066.0,0.12033972]
[1722093789201,0.08029979,69079.0,69064.0,0.47319526]
[1722093789202,0.434355,69068.0,69067.0,0.12033972]
[1722093789425,0.144791,69065.0,69064.0,0.47319526]
[1722093789594,0.434373,69065.0,69064.0,0.47319526]
[1722093789798,0.723955,69065.0,69064.0,0.47319526]
[1722093790051,1.013537,69065.0,69064.0,0.47319526]
[1722093790462,0.0624,69068.0,69056.0,0.000924]
[1722093790463,0.144806,69058.0,69056.0,0.000924]
[1722093790683,0.289606,69060.0,69056.0,0.000924]
[1722093790684,0.1463612,69057.0,69056.0,0.000924]
[1722093790881,0.0015542,69057.0,69056.0,0.000924]
[1722093791033,0.289606,69060.0,69056.0,0.000924]
[1722093791034,0.144806,69058.0,69056.0,0.000924]
[1722093791236,0.0015542,69059.0,69058.0,0.144805]
[1722093791466,0.289574,69067.0,69058.0,0.144805]
[1722093791467,0.144794,69064.0,69060.0,0.144801]
[1722093792027,0.14625656,69063.0,69059.0,0.144802]
[1722093792231,0.144793,69065.0,69061.0,0.144799]
[1722093792490,0.144776,69072.0,69067.0,0.144785]
[1722093792844,0.144776,69072.0,69066.0,0.289578]
[1722093793009,0.289554,69072.0,69066.0,0.144788]
[1722093793416,0.00153254,69070.0,69064.0,0.2117]
[1722093793624,0.289566,69069.0,69064.0,0.03381816]
[1722093793780,0.289571,69068.0,69064.0,0.03381816]
[1722093793985,0.144789,69066.0,69058.0,0.28961]
[1722093794189,0.144789,69066.0,69061.0,0.434396]
[1722093794373,0.144789,69066.0,69063.0,0.144795]
[1722093794786,0.144785,69068.0,69066.0,0.005]
[1722093795388,0.144786,69067.0,69066.0,0.005]
[1722093795589,0.0624,69075.0,69066.0,0.005]
[1722093796001,0.289544,69074.0,69068.0,0.144784]
[1722093796202,0.144778,69071.0,69067.0,0.144786]
[1722093796396,0.144774,69073.0,69069.0,0.144782]
[1722093796721,0.00517,69079.0,69069.0,0.0728928]
[1722093796901,0.144767,69077.0,69073.0,0.144773]
[1722093797235,0.00133577,69076.0,69073.0,0.144773]
[1722093797435,0.144767,69077.0,69073.0,0.144773]
[1722093797636,0.0015542,69076.0,69074.0,0.144771]
[1722093797912,0.00517,69079.0,69075.0,0.072388]
[1722093798096,0.149931,69079.0,69073.0,0.289548]
[1722093798308,0.00517,69079.0,69077.0,0.144765]
[1722093798507,0.149931,69079.0,69078.0,0.0434313]
[1722093798706,0.144764,69078.0,69072.0,0.289551]
[1722093799055,0.149931,69079.0,69075.0,0.144768]
[1722093799202,0.00517,69079.0,69076.0,0.144768]
[1722093799405,0.00517,69079.0,69076.0,0.01169715]
[1722093799606,0.149931,69079.0,69076.0,0.01169715]
[1722093799805,0.00517,69079.0,69075.0,0.144769]
[1722093800007,0.00517,69079.0,69077.0,0.01169509]
[1722093800208,0.00517,69079.0,69077.0,0.144765]
[1722093800441,0.00517,69079.0,69078.0,0.01169304]
[1722093800774,0.00517,69079.0,69078.0,1.23673704]
[1722093800980,0.00517,69079.0,69078.0,1.0591907]
[1722093801219,0.00517,69079.0,69078.0,1.07117222]
[1722093802286,0.00517,69079.0,69078.0,1.07217222]
[1722093804629,0.00517,69079.0,69078.0,0.01298152]
[1722093804822,0.149931,69079.0,69078.0,0.01298152]
[1722093805024,0.439454,69079.0,69078.0,0.01298152]
[1722093805228,0.439454,69079.0,69078.0,0.001]
[1722093805497,0.728977,69079.0,69078.0,0.001]
[1722093806283,0.149931,69079.0,69078.0,0.001]
[1722093806643,0.439454,69079.0,69078.0,0.01298152]
[1722093806858,0.728977,69079.0,69078.0,0.01298152]
[1722093807098,0.439454,69079.0,69078.0,0.001]
[1722093807304,0.149931,69079.0,69078.0,0.001]
[1722093807475,0.00517,69079.0,69078.0,0.04203632]
[1722093808683,0.149931,69079.0,69078.0,0.04203632]
[1722093808880,0.00517,69079.0,69078.0,0.01298152]
[1722093809109,0.00517,69079.0,69078.0,0.15774452]
[1722093809269,0.00517,69079.0,69078.0,0.44727152]
[1722093810775,0.00517,69079.0,69078.0,0.15774452]
[1722093810994,0.00517,69079.0,69078.0,0.44727152]
[1722093811333,0.00517,69079.0,69078.0,0.79919852]
[1722093812548,0.00517,69079.0,69078.0,0.80819852]
[1722093813151,0.00517,69079.0,69078.0,0.80719852]
[1722093813589,0.00517,69079.0,69078.0,0.81719852]
[1722093814675,0.00517,69079.0,69078.0,0.75479852]
[1722093815025,0.00517,69079.0,69078.0,0.46527152]
[1722093815406,0.00517,69079.0,69078.0,0.03098152]
[1722093815610,0.439454,69079.0,69078.0,0.03098152]
[1722093816050,0.583854,69079.0,69078.0,0.03098152]
[1722093818168,0.583854,69079.0,69078.0,0.019]
[1722093819743,0.14957,69079.0,69078.0,0.019]
[1722093820104,0.00517,69079.0,69078.0,0.06269377]
[1722093820437,0.00517,69079.0,69078.0,0.84891077]
[1722093821000,0.00517,69079.0,69078.0,0.55938377]
[1722093821209,0.00517,69079.0,69078.0,0.78651077]
[1722093821407,0.00517,69079.0,69078.0,0.49698377]
[1722093821775,0.00517,69079.0,69078.0,0.78651077]
[1722093822289,0.00517,69079.0,69078.0,0.49698377]
[1722093822495,0.00517,69079.0,69078.0,0.78651077]
[1722093822714,0.00517,69079.0,69078.0,0.49698377]
[1722093822897,0.00517,69079.0,69078.0,0.78651077]
[1722093825397,0.00517,69079.0,69078.0,1.19634451]
[1722093825786,0.00517,69079.0,69078.0,1.07603777]
[1722093826185,0.00517,69079.0,69078.0,1.06703777]
[1722093826539,0.00517,69079.0,69078.0,1.17734515]
[1722093826716,0.00517,69079.0,69078.0,0.91581815]
[1722093827121,0.00517,69079.0,69078.0,1.08503777]
[1722093828082,0.00517,69079.0,69078.0,0.91582231]
[1722093828231,0.00517,69079.0,69078.0,0.79551077]
[1722093830882,0.00517,69079.0,69078.0,0.91582145]
[1722093831085,0.00517,69079.0,69078.0,0.79551077]
[1722093831461,0.00517,69079.0,69078.0,0.91582265]
[1722093831863,0.00517,69079.0,69078.0,0.79551077]
[1722093832312,0.00517,69079.0,69078.0,0.91582153]
[1722093832762,0.00517,69079.0,69078.0,0.91582152]
[1722093833180,0.00517,69079.0,69078.0,0.79551077]
[1722093833578,0.00517,69079.0,69078.0,1.08503777]
[1722093833703,0.00517,69079.0,69078.0,0.79551077]
[1722093834339,0.00517,69079.0,69078.0,1.08503777]
[1722093834758,0.00517,69079.0,69078.0,1.20535006]
[1722093835356,0.00517,69079.0,69078.0,0.91582306]
[1722093835937,0.00517,69079.0,69078.0,0.88408512]
[1722093836347,0.00517,69079.0,69078.0,0.76377283]
[1722093836883,0.14297,69079.0,69078.0,0.03995583]
[1722093837109,0.14297,69079.0,69078.0,0.18471883]
[1722093837315,0.14297,69079.0,69078.0,0.03995583]
[1722093837828,0.14297,69079.0,69078.0,0.18471883]
[1722093838263,0.14297,69079.0,69078.0,0.03995583]
[1722093838436,0.577254,69079.0,69078.0,0.03995583]
[1722093838852,0.5788082,69079.0,69078.0,0.028]
[1722093839388,0.577254,69079.0,69078.0,0.028]
[1722093839593,0.287731,69079.0,69075.0,0.14477]
[1722093839792,0.14594739,69078.0,69074.0,0.144772]
[1722093839992,0.14594739,69078.0,69076.0,0.01190742]
[1722093840279,0.144766,69077.0,69075.0,0.01190947]
[1722093840432,0.00122714,69076.0,69074.0,0.144772]
[1722093840630,0.144764,69078.0,69074.0,0.144772]
[1722093840835,0.14297,69079.0,69074.0,0.144772]
[1722093840836,0.144766,69077.0,69074.0,0.144772]
[1722093841033,0.00136041,69076.0,69074.0,0.144772]
[1722093841236,0.00136041,69076.0,69071.0,0.289553]
[1722093841444,0.00136041,69076.0,69073.0,0.144773]
[1722093841839,0.00136041,69076.0,69074.0,0.144772]
[1722093842071,0.00136041,69077.0,69074.0,0.144772]
[1722093842433,0.14297,69079.0,69069.0,0.00872966]
[1722093842636,0.0015542,69078.0,69077.0,0.144765]
[1722093843035,0.14297,69079.0,69077.0,0.144765]
[1722093843315,0.00141131,69078.0,69077.0,0.434296]
[1722093843508,0.14297,69079.0,69078.0,0.144763]
[1722093843684,0.14297,69079.0,69078.0,0.43429]
[1722093843885,0.14297,69079.0,69078.0,0.50065396]
[1722093844084,0.00517,69079.0,69078.0,0.79018096]
[1722093844252,0.00517,69079.0,69078.0,1.07970796]
[1722093845274,0.00517,69079.0,69078.0,0.79018096]
[1722093845478,0.00517,69079.0,69078.0,0.723817]
[1722093845889,0.00517,69079.0,69078.0,1.013344]
[1722093846239,0.00517,69079.0,69078.0,1.023344]
[1722093846620,0.00517,69079.0,69078.0,1.02527907]
[1722093846818,0.00517,69079.0,69078.0,1.03927907]
[1722093847168,0.00517,69079.0,69078.0,1.16535983]
[1722093847436,0.00517,69079.0,69078.0,1.17935983]
[1722093848404,0.00517,69079.0,69078.0,0.76375207]
[1722093849441,0.00517,69079.0,69078.0,1.05327907]
[1722093850368,0.00517,69079.0,69078.0,0.76375207]
[1722093850723,0.00517,69079.0,69078.0,1.05327907]
[1722093850935,0.00517,69079.0,69078.0,0.76375207]
[1722093851155,0.00061029,69083.0,69082.0,0.723777]
[1722093851550,0.00061029,69083.0,69082.0,0.73570387]
[1722093853844,0.00061029,69083.0,69082.0,0.74870387]
[1722093854688,0.00061029,69083.0,69082.0,0.75970387]
[1722093855291,0.00061029,69083.0,69082.0,1.04921487]
[1722093855548,0.00061029,69083.0,69082.0,1.09420096]
[1722093855784,0.00061029,69083.0,69082.0,1.24070096]
[1722093857351,0.00061029,69083.0,69082.0,1.22770096]
[1722093857739,0.00061029,69083.0,69082.0,1.23070096]
[1722093857941,0.00061029,69083.0,69082.0,1.65451585]
[1722093858571,0.00061029,69083.0,69082.0,1.36500485]
[1722093859615,0.00061029,69083.0,69082.0,1.36103518]
[1722093859829,0.00061029,69083.0,69082.0,1.36303518]
[1722093859999,0.0236662,69102.0,69098.0,0.144721]
[1722093860299,0.0236662,69102.0,69098.0,1.60781897]
[1722093860453,0.0236662,69102.0,69098.0,1.61715619]
[1722093861040,0.0236662,69102.0,69098.0,1.61915619]
[1722093861246,0.0236662,69102.0,69098.0,1.76741576]
[1722093861446,0.0236662,69102.0,69098.0,1.85239813]
[1722093861668,0.0236662,69102.0,69098.0,1.83839813]
[1722093862089,0.0236662,69102.0,69098.0,1.86439813]
[1722093862569,0.0236662,69102.0,69098.0,1.85039813]
[1722093862779,0.0236662,69102.0,69098.0,1.80437546]
[1722093862985,0.0236662,69102.0,69098.0,1.79537546]
[1722093863217,0.0236662,69102.0,69098.0,1.78137546]
[1722093863610,0.0236662,69102.0,69098.0,1.7813757]
[1722093864485,0.0236662,69102.0,69098.0,1.64712552]
[1722093864925,0.0236662,69102.0,69098.0,1.78138278]
[1722093865133,0.0236662,69102.0,69098.0,1.77615235]
[1722093865346,0.0236662,69102.0,69098.0,1.65589509]
[1722093865560,0.0236662,69102.0,69098.0,1.66989509]
[1722093865768,0.0236662,69102.0,69098.0,0.61566442]
[1722093865984,0.0627,69101.0,69098.0,0.46916442]
[1722093866195,0.0627,69101.0,69098.0,0.75860742]
[1722093866405,0.0627,69101.0,69098.0,0.17972142]
[1722093866616,0.0627,69101.0,69098.0,0.19372142]
[1722093866825,0.0627,69101.0,69098.0,0.48316442]
[1722093867000,0.0627,69101.0,69098.0,0.46916442]
[1722093867240,0.07512979,69100.0,69098.0,0.03500042]
[1722093867456,0.07512979,69100.0,69098.0,0.04023085]
[1722093867869,0.21984779,69100.0,69098.0,0.04023085]
[1722093868079,0.0627,69101.0,69098.0,0.18495185]
[1722093868311,0.0627,69101.0,69098.0,0.76383785]
[1722093869012,0.0627,69101.0,69098.0,0.47439485]
[1722093869231,0.0236662,69102.0,69098.0,1.26498085]
[1722093869446,0.0236662,69102.0,69098.0,1.33128085]
[1722093869646,0.0236662,69102.0,69098.0,1.40858085]
[1722093869935,0.0236662,69102.0,69098.0,1.39458085]
[1722093870299,0.0236662,69102.0,69098.0,1.41058085]
[1722093870509,0.0236662,69102.0,69098.0,1.68402385]
[1722093870910,0.0236662,69102.0,69098.0,1.69802385]
[1722093871111,0.0236662,69102.0,69098.0,1.68402385]
[1722093871303,0.0236662,69102.0,69098.0,1.83428342]
[1722093871492,0.0236662,69102.0,69098.0,1.85728342]
[1722093871695,0.0236662,69102.0,69098.0,1.83428342]
[1722093872096,0.0236662,69102.0,69098.0,1.39458085]
[1722093872732,0.0236662,69102.0,69098.0,1.40858085]
[1722093872905,0.0236662,69102.0,69098.0,1.39458085]
[1722093873109,0.0236662,69102.0,69098.0,1.23698085]
[1722093873311,0.0236662,69102.0,69098.0,1.25098085]
[1722093873513,0.0236662,69102.0,69098.0,0.46039485]
[1722093873840,0.0236662,69102.0,69098.0,1.03927785]
[1722093874049,0.0236662,69102.0,69098.0,1.12927834]
[1722093874353,0.0236662,69102.0,69098.0,1.10127834]
[1722093874731,0.0236662,69102.0,69098.0,1.12927834]
[1722093874937,0.0236662,69102.0,69098.0,0.32967085]
[1722093875136,0.1424,69099.0,69098.0,0.47439185]
[1722093875336,0.0621,69099.0,69098.0,0.76383485]
[1722093875539,0.002,69099.0,69098.0,0.76383485]
[1722093875941,0.002,69099.0,69098.0,0.74983485]
[1722093876307,0.002,69099.0,69098.0,0.73583485]
[1722093876508,0.002,69099.0,69098.0,0.74783485]
[1722093876917,0.002,69099.0,69098.0,0.76183485]
[1722093877121,0.00284,69099.0,69098.0,0.74983485]
[1722093877388,0.00284,69099.0,69098.0,0.73583485]
[1722093877617,0.00284,69099.0,69098.0,0.76183485]
[1722093878404,0.00284,69099.0,69098.0,1.55242085]
[1722093879183,0.00284,69099.0,69098.0,1.84186385]
[1722093879383,0.00284,69099.0,69098.0,1.82786385]
[1722093879785,0.0236662,69102.0,69101.0,1.013008]
[1722093880012,0.0236662,69102.0,69101.0,1.302438]
[1722093880176,0.0236662,69102.0,69101.0,1.31491659]
[1722093881321,0.0236662,69102.0,69101.0,1.32891659]
[1722093882654,0.0236662,69102.0,69101.0,1.34291659]
[1722093884069,0.0236662,69102.0,69101.0,1.05348559]
[1722093886757,0.0236662,69102.0,69101.0,1.34291659]
[1722093888884,0.0236662,69102.0,69101.0,1.4631834]
[1722093889089,0.0236662,69102.0,69101.0,1.34291659]
[1722093889338,0.0236662,69102.0,69101.0,1.46318484]
[1722093890674,0.0236662,69102.0,69101.0,1.05348559]
[1722093891821,0.0236662,69102.0,69101.0,1.17375589]
[1722093892603,0.0236662,69102.0,69101.0,1.46318689]
[1722093895190,0.0236662,69102.0,69101.0,1.46318379]
[1722093898227,0.0236662,69102.0,69101.0,1.90287436]
[1722093898391,0.0236662,69102.0,69101.0,1.90285961]
[1722093899193,0.0236662,69102.0,69101.0,2.17829061]
[1722093899396,0.00816,69106.0,69105.0,1.656363]
[1722093899607,0.00816,69106.0,69105.0,2.31428502]
[1722093899809,0.00816,69106.0,69105.0,2.61610593]
[1722093900204,0.00816,69106.0,69105.0,2.32669193]
[1722093901295,0.00816,69106.0,69105.0,2.34069193]
[1722093902251,0.00816,69106.0,69105.0,2.35469193]
[1722093903047,0.00816,69106.0,69105.0,1.77471836]
[1722093903283,0.00816,69106.0,69105.0,1.76071836]
[1722093903492,0.00816,69106.0,69105.0,2.34069193]
[1722093903720,0.01016,69109.0,69105.0,2.34069193]
[1722093903721,0.01016,69109.0,69108.0,1.302309]
[1722093903958,0.01016,69109.0,69108.0,1.86222102]
[1722093904168,0.01016,69109.0,69108.0,1.87462178]
[1722093904374,0.01016,69109.0,69108.0,1.97462178]
[1722093904559,0.01016,69109.0,69108.0,1.97662178]
[1722093904766,0.01016,69109.0,69108.0,2.16877133]
[1722093905024,0.01016,69109.0,69108.0,2.28900839]
[1722093905604,0.01016,69109.0,69108.0,2.30300839]
[1722093905829,0.002,69119.0,69118.0,1.44242]
[1722093906033,0.002,69119.0,69118.0,2.22661316]
[1722093906163,0.002,69119.0,69118.0,2.26946583]
[1722093906364,0.002,69119.0,69118.0,2.08010583]
[1722093906591,0.002,69119.0,69118.0,2.10310583]
[1722093906787,0.002,69119.0,69118.0,2.06025316]
[1722093907212,0.002,69119.0,69118.0,2.11710583]
[1722093907411,0.002,69119.0,69118.0,2.07425316]
[1722093907991,0.002,69119.0,69118.0,2.0882404]
[1722093908226,0.002,69119.0,69118.0,2.0742404]
[1722093908423,0.002,69119.0,69118.0,2.0602404]
[1722093908629,0.002,69119.0,69118.0,1.9249404]
[1722093908833,0.002,69119.0,69118.0,0.90660083]
[1722093909037,0.002,69119.0,69118.0,0.43559301]
[1722093909248,0.002,69119.0,69118.0,0.30199653]
[1722093909444,0.002,69119.0,69118.0,0.31599653]
[1722093909722,0.212078,69119.0,69118.0,0.30199653]
[1722093909880,0.295278,69119.0,69118.0,0.30199653]
[1722093910052,0.585474,69119.0,69118.0,0.30199653]
[1722093910272,0.87483,69119.0,69118.0,0.31599653]
[1722093910860,0.585474,69119.0,69118.0,0.31599653]
[1722093911066,0.585474,69119.0,69118.0,0.36159618]
[1722093911265,0.87483,69119.0,69118.0,0.36159618]
[1722093911586,0.87483,69119.0,69118.0,0.30199653]
[1722093911793,0.87483,69119.0,69118.0,0.31000161]
[1722093912173,0.87483,69119.0,69118.0,0.30900161]
[1722093912373,0.87483,69119.0,69118.0,0.30300161]
[1722093912374,1.164186,69119.0,69118.0,0.30300161]
[1722093912827,1.164186,69119.0,69118.0,0.30200161]
[1722093913380,0.87483,69119.0,69118.0,0.30300161]
[1722093914174,1.164186,69119.0,69118.0,0.30300161]
[1722093914777,1.164186,69119.0,69118.0,0.30200161]
[1722093915685,1.165186,69119.0,69118.0,0.30200161]
[1722093916425,1.164186,69119.0,69118.0,0.30200161]
[1722093917853,1.165186,69119.0,69118.0,0.30200161]
[1722093918078,1.165186,69119.0,69118.0,0.28936]
[1722093918271,1.164186,69119.0,69118.0,0.28936]
[1722093918475,1.165186,69119.0,69118.0,0.28936]
[1722093923500,1.454542,69119.0,69118.0,0.28936]
[1722093923872,1.165186,69119.0,69118.0,0.28936]
[1722093924288,1.165186,69119.0,69118.0,0.29886387]
[1722093924484,1.165186,69119.0,69118.0,0.28936]
[1722093924685,1.165186,69119.0,69118.0,0.29886387]
[1722093924888,1.164186,69119.0,69118.0,0.29886387]
[1722093925294,1.165186,69119.0,69118.0,0.30203182]
[1722093925448,1.165186,69119.0,69118.0,0.29886387]
[1722093925862,1.554542,69119.0,69118.0,0.29886387]
[1722093926041,1.554542,69119.0,69118.0,0.28936]
[1722093926465,1.97344211,69119.0,69118.0,0.28936]
[1722093926693,2.01037284,69119.0,69118.0,0.28936]
[1722093926907,1.554542,69119.0,69118.0,0.28936]
[1722093927114,1.843898,69119.0,69118.0,0.28936]
[1722093927327,1.866898,69119.0,69118.0,0.193824]
[1722093927524,2.01715757,69119.0,69118.0,0.193824]
[1722093927739,2.14658572,69119.0,69118.0,0.135952]
[1722093928045,0.580746,69101.0,69100.0,0.45077872]
[1722093928255,1.549039,69101.0,69100.0,0.46356475]
[1722093928456,1.549039,69101.0,69100.0,0.01278603]
[1722093928802,1.549039,69101.0,69099.0,0.000924]
[1722093928803,1.095022,69100.0,69099.0,0.000924]
[1722093928991,1.484457,69100.0,69099.0,0.000924]
[1722093929768,1.549057,69100.0,69099.0,0.000924]
[1722093930963,1.838492,69100.0,69099.0,0.000924]
[1722093931354,1.838492,69100.0,69099.0,0.001924]
[1722093931555,1.838492,69100.0,69099.0,0.003924]
[1722093931999,1.838492,69100.0,69099.0,0.002924]
[1722093932222,2.30118657,69100.0,69099.0,0.002924]
[1722093932469,2.30618657,69100.0,69099.0,0.000924]